Department Family,Entity,Date of Payment,GL Description,Expense Area,Supplier,Voluntary & Community Sector,SME Class,Sole Trader,Transaction number,Purchasing Item Text,Postal Code,Amount in Sterling,Grant?
MHCLG,PINS,01/02/2019,IT SUPPORT,ICT Digital Services,HAYS SPECIALIST RECRUITMENT LTD,,Large,,5106243322,ITMP Delivery Manage,NW1 2AF,"4,660.50",
MHCLG,PINS,01/02/2019,IT SUPPORT,Research and Development,HAYS SPECIALIST RECRUITMENT LTD,,Large,,5106243305,Workforce planner,NW1 2AF,"2,262.84",
MHCLG,PINS,01/02/2019,IT SUPPORT,TR People,HAYS SPECIALIST RECRUITMENT LTD,,Large,,5106243312,End of Dec Extension HR BP-SL,NW1 2AF,"3,832.56",
MHCLG,PINS,01/02/2019,Notional Audit Fees,"Finance, Commercial & Performance",H M TREASURY,,Public Bodies,,2100068222,Internal Audit Services,NR7 0HS,"-14,025.00",
MHCLG,PINS,01/02/2019,Notional Audit Fees,"Finance, Commercial & Performance",H M TREASURY,,Public Bodies,,5106243235,Internal Audit Services,NR7 0HS,"14,025.00",
MHCLG,PINS,01/02/2019,Specialist Technical Support,ICT Digital Services,ALLEN LANE LTD,,Medium,,5106243296,Office 365 technical specialist from,SW1Y 6RJ,"2,681.94",
MHCLG,PINS,01/02/2019,Web Services,ICT Digital Services,MEMSET LIMITED,,Small,,5106243330,Hosting of mini servers FY 2018-19,GU6 8TB,665.10,
MHCLG,PINS,04/02/2019,Agency Staff,Inspector Development & Support Team,REED SPECIALIST RECRUITMENT LTD,,Large,,5106243232,Temp staff for IDST-SC,SW20 0BA,611.21,
MHCLG,PINS,04/02/2019,Agency Staff,Inspector Development & Support Team,REED SPECIALIST RECRUITMENT LTD,,Large,,5106243233,Agency EO IDST,SW20 0BA,852.35,
MHCLG,PINS,04/02/2019,Courier Services,Estates,ROYAL MAIL,,Large,,5106243427,Outgoing post,S49 1HQ,"1,457.71",
MHCLG,PINS,04/02/2019,EXP � PURCHASE OF GOODS /SERVICES R & D,Research and Development,HAYS SPECIALIST RECRUITMENT LTD,,Large,,5106243236,ODT Copywriter Resource,NW1 2AF,"1,588.00",
MHCLG,PINS,04/02/2019,NSI Fees & Expenses,NSI Fees Planning,4 PLANNING DELIVERY LTD,,Micro,,2100068178,,S8 9BG,"1,036.00",
MHCLG,PINS,04/02/2019,NSI Fees & Expenses,NSI Expenses Planning,4 PLANNING DELIVERY LTD,,Micro,,2100068178,,S8 9BG,256.30,
MHCLG,PINS,04/02/2019,NSI Fees & Expenses,NSI Fees Planning,ALISON ROLAND,,Not assigned,,2100068216,,BD20 7BG,"1,470.00",
MHCLG,PINS,04/02/2019,NSI Fees & Expenses,NSI Expenses Planning,ALISON ROLAND,,Not assigned,,2100068216,,BD20 7BG,42.12,
MHCLG,PINS,04/02/2019,NSI Fees & Expenses,NSI Fees Planning,ANDREW DALE,,Not assigned,,2100068177,,DE23 8DP,"1,925.00",
MHCLG,PINS,04/02/2019,NSI Fees & Expenses,NSI Expenses Planning,ANDREW DALE,,Not assigned,,2100068177,,DE23 8DP,270.40,
MHCLG,PINS,04/02/2019,NSI Fees & Expenses,NSI Fees Planning,B B Architecture & Planning Ltd,,Micro,,2100068173,,WR5 2DQ,"2,160.00",
MHCLG,PINS,04/02/2019,NSI Fees & Expenses,NSI Expenses Planning,B B Architecture & Planning Ltd,,Micro,,2100068173,,WR5 2DQ,15.90,
MHCLG,PINS,04/02/2019,NSI Fees & Expenses,NSI Fees Planning,CHEC PLANNING LTD,,Micro,,2100068213,,CB6 3PG,"2,100.00",
MHCLG,PINS,04/02/2019,NSI Fees & Expenses,NSI Expenses Planning,CHEC PLANNING LTD,,Micro,,2100068213,,CB6 3PG,125.64,
MHCLG,PINS,04/02/2019,NSI Fees & Expenses,NSI Fees Planning,COUPER PLANNING SERVICES LTD,,Micro,,2100068209,,WR5 2AG,"2,100.00",
MHCLG,PINS,04/02/2019,NSI Fees & Expenses,NSI Expenses Planning,COUPER PLANNING SERVICES LTD,,Micro,,2100068209,,WR5 2AG,110.39,
MHCLG,PINS,04/02/2019,NSI Fees & Expenses,NSI Fees Planning,D C PLANNING LTD,,Data Not Provided,,2100068164,,BH14 8AL,"4,110.00",
MHCLG,PINS,04/02/2019,NSI Fees & Expenses,NSI Expenses Planning,D C PLANNING LTD,,Data Not Provided,,2100068164,,BH14 8AL,248.33,
MHCLG,PINS,04/02/2019,NSI Fees & Expenses,NSI Fees Planning,D C PLANNING LTD,,Data Not Provided,,2100068165,,BH14 8AL,"4,290.00",
MHCLG,PINS,04/02/2019,NSI Fees & Expenses,NSI Expenses Planning,D C PLANNING LTD,,Data Not Provided,,2100068165,,BH14 8AL,300.24,
MHCLG,PINS,04/02/2019,NSI Fees & Expenses,NSI Fees Planning,DAVIS PLANNING LIMITED,,Small,,2100068176,,RG41 3HL,"2,040.00",
MHCLG,PINS,04/02/2019,NSI Fees & Expenses,NSI Expenses Planning,DAVIS PLANNING LIMITED,,Small,,2100068176,,RG41 3HL,71.28,
MHCLG,PINS,04/02/2019,NSI Fees & Expenses,NSI Fees Planning,DESIGN 2,,Micro,,2100068211,,PO20 0HX,420.00,
MHCLG,PINS,04/02/2019,NSI Fees & Expenses,NSI Fees Planning,DESIGN 2,,Micro,,2100068212,,PO20 0HX,"1,680.00",
MHCLG,PINS,04/02/2019,NSI Fees & Expenses,NSI Expenses Planning,DESIGN 2,,Micro,,2100068212,,PO20 0HX,118.44,
MHCLG,PINS,04/02/2019,NSI Fees & Expenses,NSI Fees Planning,FITZSIMON PLANNING & DEVELOPMENT,,Micro,,2100068219,,CH7 5NL,"3,750.00",
MHCLG,PINS,04/02/2019,NSI Fees & Expenses,NSI Expenses Planning,FITZSIMON PLANNING & DEVELOPMENT,,Micro,,2100068220,,CH7 5NL,359.00,
MHCLG,PINS,04/02/2019,NSI Fees & Expenses,NSI Fees Planning,GARY DEANE ASSOCIATES LIMITED,,Micro,,2100068221,,M33 6RG,"2,100.00",
MHCLG,PINS,04/02/2019,NSI Fees & Expenses,NSI Expenses Planning,GARY DEANE ASSOCIATES LIMITED,,Micro,,2100068221,,M33 6RG,120.42,
MHCLG,PINS,04/02/2019,NSI Fees & Expenses,NSI Fees Planning,GRAHAM SELF,,Small,,2100068166,,BS31 3EG,"2,245.00",
MHCLG,PINS,04/02/2019,NSI Fees & Expenses,NSI Expenses Planning,GRAHAM SELF,,Small,,2100068166,,BS31 3EG,208.50,
MHCLG,PINS,04/02/2019,NSI Fees & Expenses,NSI Fees Planning,JDA DEVELOPMENT & PLANNING SERVICE,,Micro,,2100068163,,TA14 6PT,"1,750.00",
MHCLG,PINS,04/02/2019,NSI Fees & Expenses,NSI Expenses Planning,JDA DEVELOPMENT & PLANNING SERVICE,,Micro,,2100068163,,TA14 6PT,102.75,
MHCLG,PINS,04/02/2019,NSI Fees & Expenses,NSI Fees Planning,JM SPURLING PLANNING CONSULTANTS LT,,Small,,2100068167,,WR14 1UQ,"1,875.00",
MHCLG,PINS,04/02/2019,NSI Fees & Expenses,NSI Expenses Planning,JM SPURLING PLANNING CONSULTANTS LT,,Small,,2100068167,,WR14 1UQ,112.65,
MHCLG,PINS,04/02/2019,NSI Fees & Expenses,NSI Fees Planning,JOHN WHALLEY,,Micro,,2100068170,,LL54 5BS,"2,015.00",
MHCLG,PINS,04/02/2019,NSI Fees & Expenses,NSI Expenses Planning,JOHN WHALLEY,,Micro,,2100068170,,LL54 5BS,267.20,
MHCLG,PINS,04/02/2019,NSI Fees & Expenses,NSI Fees Planning,JS CONSERVATION MANAGEMENT &,,Small,,2100068223,,LS27 0BD,"1,364.30",
MHCLG,PINS,04/02/2019,NSI Fees & Expenses,NSI Fees Planning,MARTIN ANDREWS PLANNING CONSULTANCY,,Micro,,2100068215,,BH15 1HH,"2,670.00",
MHCLG,PINS,04/02/2019,NSI Fees & Expenses,NSI Expenses Planning,MARTIN ANDREWS PLANNING CONSULTANCY,,Micro,,2100068215,,BH15 1HH,225.06,
MHCLG,PINS,04/02/2019,NSI Fees & Expenses,NSI Fees Planning,PLANNING HOUSE,,Small,,2100068174,,SR8 3NR,"2,300.00",
MHCLG,PINS,04/02/2019,NSI Fees & Expenses,NSI Expenses Planning,PLANNING HOUSE,,Small,,2100068174,,SR8 3NR,257.57,
MHCLG,PINS,04/02/2019,NSI Fees & Expenses,NSI Fees Planning,RICHMOND PLANNING AND MARKETING LTD,,Small,,2100068218,,B45 8HX,"1,875.00",
MHCLG,PINS,04/02/2019,NSI Fees & Expenses,NSI Expenses Planning,RICHMOND PLANNING AND MARKETING LTD,,Small,,2100068218,,B45 8HX,97.24,
MHCLG,PINS,04/02/2019,NSI Fees & Expenses,NSI Fees Planning,STUTCHBURY ASSOCIATES LTD,,Small,,2100068217,,BA2 7AJ,"1,400.00",
MHCLG,PINS,04/02/2019,NSI Fees & Expenses,NSI Expenses Planning,STUTCHBURY ASSOCIATES LTD,,Small,,2100068217,,BA2 7AJ,72.00,
MHCLG,PINS,04/02/2019,Specialist Technical Support,"Finance, Commercial & Performance",ALLEN LANE LTD,,Medium,,5106243295,FPBP Resource ext,SW1Y 6RJ,"3,427.68",
MHCLG,PINS,05/02/2019,NSI Fees & Expenses,NSI Fees Planning,EGGLETON PLANNING AND DESIGN,,Micro,,2100068279,,HG4 2QF,"1,674.00",
MHCLG,PINS,05/02/2019,NSI Fees & Expenses,NSI Expenses Planning,EGGLETON PLANNING AND DESIGN,,Micro,,2100068279,,HG4 2QF,135.72,
MHCLG,PINS,05/02/2019,NSI Fees & Expenses,NSI Fees Planning,G E PLANNING,,Small,,2100068283,,RG24 8SA,"1,700.00",
MHCLG,PINS,05/02/2019,NSI Fees & Expenses,NSI Expenses Planning,G E PLANNING,,Small,,2100068283,,RG24 8SA,45.90,
MHCLG,PINS,05/02/2019,NSI Fees & Expenses,NSI Fees Planning,G R PLANNING CONSULTANCY LTD,,Small,,2100068277,,TQ6 9RG,"2,340.00",
MHCLG,PINS,05/02/2019,NSI Fees & Expenses,NSI Expenses Planning,G R PLANNING CONSULTANCY LTD,,Small,,2100068277,,TQ6 9RG,340.92,
MHCLG,PINS,05/02/2019,NSI Fees & Expenses,NSI Fees Planning,H J L PLANNING,,Micro,,2100068282,,CM3 1HZ,"1,400.00",
MHCLG,PINS,05/02/2019,NSI Fees & Expenses,NSI Expenses Planning,H J L PLANNING,,Micro,,2100068282,,CM3 1HZ,55.80,
MHCLG,PINS,05/02/2019,NSI Fees & Expenses,NSI Fees Planning,LANGFORD TEJRAR PLANNING LTD,,Small,,2100068281,,GL20 7EE,"1,680.00",
MHCLG,PINS,05/02/2019,NSI Fees & Expenses,NSI Expenses Planning,LANGFORD TEJRAR PLANNING LTD,,Small,,2100068281,,GL20 7EE,79.38,
MHCLG,PINS,05/02/2019,NSI Fees & Expenses,NSI Fees Planning,MARTIN ANDREWS PLANNING CONSULTANCY,,Micro,,2100068275,,BH15 1HH,"3,990.00",
MHCLG,PINS,05/02/2019,NSI Fees & Expenses,NSI Expenses Planning,MARTIN ANDREWS PLANNING CONSULTANCY,,Micro,,2100068275,,BH15 1HH,214.74,
MHCLG,PINS,05/02/2019,NSI Fees & Expenses,NSI Fees Planning,MICHAEL SIMMONS,,Data Not Provided,,2100068274,,NP16 6DQ,"1,400.00",
MHCLG,PINS,05/02/2019,NSI Fees & Expenses,NSI Expenses Planning,MICHAEL SIMMONS,,Data Not Provided,,2100068274,,NP16 6DQ,143.15,
MHCLG,PINS,05/02/2019,NSI Fees & Expenses,NSI Fees Planning,MR R J MAILE,,Not assigned,,2100068272,,BN11 1QG,"3,360.00",
MHCLG,PINS,05/02/2019,NSI Fees & Expenses,NSI Fees Planning,STORRIE PLANNING,,Small,,2100068224,,HD1 6RX,"1,700.00",
MHCLG,PINS,06/02/2019,Agency Staff,Planning Casework Operations,REED SPECIALIST RECRUITMENT LTD,,Large,,5106243519,Agency AO PCO GD,SW20 0BA,487.44,
MHCLG,PINS,06/02/2019,Agency Staff,"Policy, Knowledge & Quality",REED SPECIALIST RECRUITMENT LTD,,Large,,5106243526,Agency Staff for Library,SW20 0BA,591.74,
MHCLG,PINS,06/02/2019,Agency Staff,Enforcements,REED SPECIALIST RECRUITMENT LTD,,Large,,5106243529,Agency Staff RT,SW20 0BA,548.64,
MHCLG,PINS,06/02/2019,Agency Staff,"Finance, Commercial & Performance",REED SPECIALIST RECRUITMENT LTD,,Large,,5106243530,EO for Finance ext,SW20 0BA,388.58,
MHCLG,PINS,06/02/2019,Internal Audit,"Finance, Commercial & Performance",H M TREASURY,,Public Bodies,,5106243525,Internal Audit Services,NR7 0HS,"14,025.00",
MHCLG,PINS,06/02/2019,IT SUPPORT,TR People,HAYS SPECIALIST RECRUITMENT LTD,,Large,,5106243323,End of Dec Extension HR BP-SL,NW1 2AF,"3,832.56",
MHCLG,PINS,06/02/2019,IT SUPPORT,Differences - Central,HAYS SPECIALIST RECRUITMENT LTD,,Large,,5106243332,Research & Development for Stats ODT,NW1 2AF,"2,682.00",
MHCLG,PINS,06/02/2019,IT SUPPORT,Differences - Central,HAYS SPECIALIST RECRUITMENT LTD,,Large,,5106243334,Research & Development for Stats ODT,NW1 2AF,"2,682.00",
MHCLG,PINS,06/02/2019,Legal Fees,Wales Director,GOVERNMENT LEGAL DEPT,,Public Bodies,,2100068384,Legal Fees,WC2B 4TS,"-5,575.80",
MHCLG,PINS,06/02/2019,Legal Fees,Wales Director,GOVERNMENT LEGAL DEPT,,Public Bodies,,2100068384,Legal Fees / Service Non VAT,WC2B 4TS,-89.60,
MHCLG,PINS,06/02/2019,Legal Fees,Wales Director,GOVERNMENT LEGAL DEPT,,Public Bodies,,5106243124,Legal Fees,WC2B 4TS,"5,575.80",
MHCLG,PINS,06/02/2019,Legal Fees,Wales Director,GOVERNMENT LEGAL DEPT,,Public Bodies,,5106243124,Legal Fees / Service Non VAT,WC2B 4TS,89.60,
MHCLG,PINS,06/02/2019,NSI Fees & Expenses,NSI Fees Planning,CONTEXT PLANNING LTD,,Micro,,2100068332,,BA15 1BL,"1,375.00",
MHCLG,PINS,06/02/2019,NSI Fees & Expenses,NSI Expenses Planning,CONTEXT PLANNING LTD,,Micro,,2100068332,,BA15 1BL,740.71,
MHCLG,PINS,06/02/2019,NSI Fees & Expenses,NSI Fees Planning,ELDNAR LTD,,Micro,,2100068334,,WR6 6QD,"1,375.00",
MHCLG,PINS,06/02/2019,NSI Fees & Expenses,NSI Expenses Planning,ELDNAR LTD,,Micro,,2100068334,,WR6 6QD,676.60,
MHCLG,PINS,06/02/2019,NSI Fees & Expenses,NSI Fees Planning,JACKMAN ENTERPRISES LTD,,Small,,2100068276,,EN5 2JA,"1,890.00",
MHCLG,PINS,06/02/2019,NSI Fees & Expenses,NSI Expenses Planning,JACKMAN ENTERPRISES LTD,,Small,,2100068276,,EN5 2JA,18.96,
MHCLG,PINS,06/02/2019,NSI Fees & Expenses,NSI Fees Planning,JAN HEBBLETHWAITE,,Micro,,2100068333,,ST17 0SA,"1,250.00",
MHCLG,PINS,06/02/2019,NSI Fees & Expenses,NSI Expenses Planning,JAN HEBBLETHWAITE,,Micro,,2100068333,,ST17 0SA,529.68,
MHCLG,PINS,06/02/2019,NSI Fees & Expenses,NSI Fees Planning,PLANNING HOUSE,,Small,,2100068337,,SR8 3NR,"2,125.00",
MHCLG,PINS,06/02/2019,NSI Fees & Expenses,NSI Expenses Planning,PLANNING HOUSE,,Small,,2100068337,,SR8 3NR,365.40,
MHCLG,PINS,06/02/2019,NSI Fees & Expenses,NSI Fees Planning,SIMPLY PLANNING LIMITED,,Small,,2100068285,,BT23 6NR,"2,040.00",
MHCLG,PINS,06/02/2019,NSI Fees & Expenses,NSI Expenses Planning,SIMPLY PLANNING LIMITED,,Small,,2100068285,,BT23 6NR,262.08,
MHCLG,PINS,06/02/2019,NSI Fees & Expenses,NSI Fees Planning,STORRIE PLANNING,,Small,,2100068326,,HD1 6RX,"2,100.00",
MHCLG,PINS,06/02/2019,NSI Fees & Expenses,NSI Expenses Planning,STORRIE PLANNING,,Small,,2100068326,,HD1 6RX,297.37,
MHCLG,PINS,06/02/2019,NSI Fees & Expenses,NSI Fees Planning,TERRENCE KEMMANN-LANE,,Data Not Provided,,2100068327,,IP10 0ET,"1,000.00",
MHCLG,PINS,06/02/2019,NSI Fees & Expenses,NSI Expenses Planning,TERRENCE KEMMANN-LANE,,Data Not Provided,,2100068327,,IP10 0ET,455.95,
MHCLG,PINS,06/02/2019,Specialist Technical Support,ICT Digital Services,REED SPECIALIST RECRUITMENT LTD,,Large,,5106243493,ITMP resource,SW20 0BA,"1,212.00",
MHCLG,PINS,06/02/2019,Vehicle hire,Inspector Costs,ENTERPRISE RENT-A-CAR,,Large,,5106243512,Vehicle hire,TW20 9FB,"13,405.55",
MHCLG,PINS,07/02/2019,Agency Staff,Environment & Transport,REED SPECIALIST RECRUITMENT LTD,,Large,,5106243563,AO Specialist Case Officer PS,SW20 0BA,552.10,
MHCLG,PINS,07/02/2019,Agency Staff,Environment & Transport,REED SPECIALIST RECRUITMENT LTD,,Large,,5106243566,AO Specialist Case Officer HL,SW20 0BA,569.88,
MHCLG,PINS,07/02/2019,EXP � PURCHASE OF GOODS /SERVICES R & D,Research and Development,HAYS SPECIALIST RECRUITMENT LTD,,Large,,5106243505,ODT Copywriter Resource,NW1 2AF,"1,191.00",
MHCLG,PINS,07/02/2019,EXP � PURCHASE OF GOODS /SERVICES R & D,TR Transformation,RAINMAKER SOLUTIONS LTD,,Medium,,5106243543,Variation 011 - Dev Research,MK18 1HD,"16,062.50",
MHCLG,PINS,07/02/2019,IT SUPPORT,ICT Digital Services,THIRTY FOUR FEET LTD,,Micro,,5106243448,IT tester services - contract extension,NP15 1QB,"1,680.00",
MHCLG,PINS,07/02/2019,Specialist Technical Support,ICT Digital Services,MEDLEY BUSINESS SOLUTIONS LIMITED,,Medium,,5106243504,Services of a Digital Architect,GU4 8PR,"19,958.40",
MHCLG,PINS,07/02/2019,Specialist Technical Support,ICT Digital Services,REED SPECIALIST RECRUITMENT LTD,,Large,,5106243508,Contract extension,SW20 0BA,"1,012.96",
MHCLG,PINS,08/02/2019,Agency Staff,Inspector Development & Support Team,REED SPECIALIST RECRUITMENT LTD,,Large,,5106243491,Temp staff for IDST-SC,SW20 0BA,626.88,
MHCLG,PINS,08/02/2019,Agency Staff,Inspector Development & Support Team,REED SPECIALIST RECRUITMENT LTD,,Large,,5106243509,Agency EO IDST,SW20 0BA,753.36,
MHCLG,PINS,08/02/2019,Agency Staff,Planning Casework Operations,REED SPECIALIST RECRUITMENT LTD,,Large,,5106243632,AO AGENCY STAFF JJF,SW20 0BA,599.84,
MHCLG,PINS,08/02/2019,Courier Services,Estates,ROYAL MAIL,,Large,,5106243630,Outgoing post,S49 1HQ,"1,778.76",
MHCLG,PINS,08/02/2019,EXP � PURCHASE OF GOODS /SERVICES R & D,Research and Development,HAYS SPECIALIST RECRUITMENT LTD,,Large,,5106243494,ODT Copywriter Resource,NW1 2AF,"1,191.00",
MHCLG,PINS,08/02/2019,IT SUPPORT,Transformation Prog Management Office,METHODS PROFESSIONAL SERVICES,,Small,,5106243492,PM for Performance Recovery Project,EC1A 4EN,"19,912.38",
MHCLG,PINS,08/02/2019,Legal Fees,Wales Director,GOVERNMENT LEGAL DEPT,,Public Bodies,,5106243614,Legal Fees / Service Non VAT,WC2B 4TS,89.60,
MHCLG,PINS,08/02/2019,Legal Fees,Wales Director,GOVERNMENT LEGAL DEPT,,Public Bodies,,5106243614,Legal Fees 2019,WC2B 4TS,"5,575.80",
MHCLG,PINS,08/02/2019,NSI Fees & Expenses,NSI Fees Planning,APS APPEALS &PLANNING SERVICES,,Micro,,2100068395,,OL16 4SW,"1,250.00",
MHCLG,PINS,08/02/2019,NSI Fees & Expenses,NSI Expenses Planning,APS APPEALS &PLANNING SERVICES,,Micro,,2100068395,,OL16 4SW,695.42,
MHCLG,PINS,08/02/2019,NSI Fees & Expenses,NSI Fees Planning,BEACON HILL PRACTICE LTD,,Small,,2100068391,,RH7 6RH,"2,100.00",
MHCLG,PINS,08/02/2019,NSI Fees & Expenses,NSI Expenses Planning,BEACON HILL PRACTICE LTD,,Small,,2100068391,,RH7 6RH,39.60,
MHCLG,PINS,08/02/2019,NSI Fees & Expenses,NSI Fees Planning,ENERGIA CONSULTANTS LTD,,Micro,,2100068341,,GL6 0SA,"1,400.00",
MHCLG,PINS,08/02/2019,NSI Fees & Expenses,NSI Expenses Planning,ENERGIA CONSULTANTS LTD,,Micro,,2100068341,,GL6 0SA,78.00,
MHCLG,PINS,08/02/2019,NSI Fees & Expenses,NSI Fees Planning,GRAHAM SELF,,Small,,2100068392,,BS31 3EG,"2,030.00",
MHCLG,PINS,08/02/2019,NSI Fees & Expenses,NSI Expenses Planning,GRAHAM SELF,,Small,,2100068392,,BS31 3EG,178.90,
MHCLG,PINS,08/02/2019,NSI Fees & Expenses,NSI Fees Planning,LJE PLANNING LTD,,Data Not Provided,,2100068393,,SO22 6RT,"3,240.00",
MHCLG,PINS,08/02/2019,NSI Fees & Expenses,NSI Expenses Planning,LJE PLANNING LTD,,Data Not Provided,,2100068393,,SO22 6RT,66.00,
MHCLG,PINS,08/02/2019,NSI Fees & Expenses,NSI Fees Planning,LJE PLANNING LTD,,Data Not Provided,,2100068394,,SO22 6RT,600.00,
MHCLG,PINS,08/02/2019,NSI Fees & Expenses,NSI Expenses Planning,LJE PLANNING LTD,,Data Not Provided,,2100068394,,SO22 6RT,190.08,
MHCLG,PINS,08/02/2019,NSI Fees & Expenses,NSI Fees Planning,RICHMOND PLANNING AND MARKETING LTD,,Small,,2100068343,,B45 8HX,"1,450.00",
MHCLG,PINS,08/02/2019,NSI Fees & Expenses,NSI Expenses Planning,RICHMOND PLANNING AND MARKETING LTD,,Small,,2100068343,,B45 8HX,79.85,
MHCLG,PINS,08/02/2019,Office machinery consumables,Business Support,X M A LIMITED,,Data Not Provided,,5106243625,Office Machine Consumables 18-19,NG11 7EP,273.92,
MHCLG,PINS,08/02/2019,Office machinery consumables,Business Support,X M A LIMITED,,Data Not Provided,,5106243626,Office Machine Consumables 18-19,NG11 7EP,"2,921.54",
MHCLG,PINS,08/02/2019,Office machinery consumables,Business Support,X M A LIMITED,,Data Not Provided,,5106243627,Office Machine Consumables 18-19,NG11 7EP,"1,930.97",
MHCLG,PINS,08/02/2019,Office machinery consumables,Business Support,X M A LIMITED,,Data Not Provided,,5106243628,Office Machine Consumables 18-19,NG11 7EP,"1,610.40",
MHCLG,PINS,08/02/2019,Office machinery consumables,Business Support,X M A LIMITED,,Data Not Provided,,5106243634,Office Machine Consumables 18-19,NG11 7EP,513.31,
MHCLG,PINS,08/02/2019,Office machinery consumables,Business Support,X M A LIMITED,,Data Not Provided,,5106243636,Office Machine Consumables 18-19,NG11 7EP,354.12,
MHCLG,PINS,08/02/2019,Specialist Technical Support,ICT Digital Services,METHODS PROFESSIONAL SERVICES,,Small,,5106243613,Contract extention Methods,EC1A 4EN,"14,223.00",
MHCLG,PINS,11/02/2019,Catering,Inspector Costs,YORK MEDICAL SOCIETY,,Not assigned,,5106243700,Outside Catering,YO1 8AW,71.50,
MHCLG,PINS,11/02/2019,Catering,Inspector Costs,YORK MEDICAL SOCIETY,,Not assigned,,5106243700,Teas and Coffee by YMS,YO1 8AW,36.40,
MHCLG,PINS,11/02/2019,Conferences and Meeting Facilities,Inspector Costs,YORK MEDICAL SOCIETY,,Not assigned,,5106243700,Room hire 10/05/2018,YO1 8AW,160.00,
MHCLG,PINS,11/02/2019,EXP � PURCHASE OF GOODS /SERVICES R & D,TR Transformation,RAINMAKER SOLUTIONS LTD,,Medium,,5106243540,T&M work-Design Stages,MK18 1HD,"13,150.00",
MHCLG,PINS,11/02/2019,IT - Service Contracts,ICT Digital Services,ZSAH LTD,,Small,,2100068498,Extension of PINS contract 17/12/710,SW7 3HE,"-4,098.26",
MHCLG,PINS,11/02/2019,IT - Service Contracts,ICT Digital Services,ZSAH LTD,,Small,,5106243490,Extension of PINS contract 17/12/710,SW7 3HE,"4,098.26",
MHCLG,PINS,11/02/2019,IT SUPPORT,ICT Digital Services,AIIMI LTD,,Medium,,5106243443,Imps Consultant,MK9 1JL,"27,090.00",
MHCLG,PINS,11/02/2019,IT SUPPORT,ICT Digital Services,HAYS SPECIALIST RECRUITMENT LTD,,Large,,5106243691,ITMP Delivery Manager,NW1 2AF,"2,796.30",
MHCLG,PINS,11/02/2019,IT SUPPORT,Research and Development,METHODS PROFESSIONAL SERVICES,,Small,,5106243611,ODT PDM Contract ,EC1A 4EN,"23,940.00",
MHCLG,PINS,11/02/2019,Specialist Technical Support,"Finance, Commercial & Performance",ALLEN LANE LTD,,Medium,,5106243608,FPBP Resource ext,SW1Y 6RJ,"3,427.68",
MHCLG,PINS,11/02/2019,Specialist Technical Support,ICT Digital Services,ALLEN LANE LTD,,Medium,,5106243610,Office 365 technical specialist from,SW1Y 6RJ,"3,272.70",
MHCLG,PINS,12/02/2019,Courier Services,Estates,ROYAL MAIL,,Large,,5106243714,Outgoing post,S49 1HQ,"2,039.59",
MHCLG,PINS,12/02/2019,IT - Service Contracts,ICT Digital Services,ZSAH LTD,,Small,,5106243704,Extension of PINS contract 17/12/710,SW7 3HE,"4,098.26",
MHCLG,PINS,12/02/2019,NSI Fees & Expenses,NSI Fees Planning,ADDC LTD,,Small,,2100068446,,DE56 4AD,"1,700.00",
MHCLG,PINS,12/02/2019,NSI Fees & Expenses,NSI Expenses Planning,ADDC LTD,,Small,,2100068446,,DE56 4AD,74.85,
MHCLG,PINS,12/02/2019,NSI Fees & Expenses,NSI Fees Planning,ADDC LTD,,Small,,2100068447,,DE56 4AD,"1,700.00",
MHCLG,PINS,12/02/2019,NSI Fees & Expenses,NSI Expenses Planning,ADDC LTD,,Small,,2100068447,,DE56 4AD,117.45,
MHCLG,PINS,12/02/2019,NSI Fees & Expenses,NSI Fees Planning,ANDREW DALE,,Not assigned,,2100068567,,DE23 8DP,"1,800.00",
MHCLG,PINS,12/02/2019,NSI Fees & Expenses,NSI Expenses Planning,ANDREW DALE,,Not assigned,,2100068567,,DE23 8DP,162.00,
MHCLG,PINS,12/02/2019,NSI Fees & Expenses,NSI Fees Planning,CHEC PLANNING LTD,,Micro,,2100068562,,CB6 3PG,"2,100.00",
MHCLG,PINS,12/02/2019,NSI Fees & Expenses,NSI Expenses Planning,CHEC PLANNING LTD,,Micro,,2100068562,,CB6 3PG,147.48,
MHCLG,PINS,12/02/2019,NSI Fees & Expenses,NSI Fees Planning,CHRIS TIVEY ASSOCIATES,,Micro,,2100068505,,BA4 9DN,"1,680.00",
MHCLG,PINS,12/02/2019,NSI Fees & Expenses,NSI Expenses Planning,CHRIS TIVEY ASSOCIATES,,Micro,,2100068505,,BA4 9DN,50.40,
MHCLG,PINS,12/02/2019,NSI Fees & Expenses,NSI Fees Planning,GRAHAM SELF,,Small,,2100068503,,BS31 3EG,"1,800.00",
MHCLG,PINS,12/02/2019,NSI Fees & Expenses,NSI Expenses Planning,GRAHAM SELF,,Small,,2100068503,,BS31 3EG,105.40,
MHCLG,PINS,12/02/2019,NSI Fees & Expenses,NSI Fees Planning,GRAHAM SELF,,Small,,2100068569,,BS31 3EG,"1,700.00",
MHCLG,PINS,12/02/2019,NSI Fees & Expenses,NSI Expenses Planning,GRAHAM SELF,,Small,,2100068569,,BS31 3EG,73.35,
MHCLG,PINS,12/02/2019,NSI Fees & Expenses,NSI Fees Planning,GRESTY LAND AGENCY LTD,,Micro,,2100068439,,PE9 4EF,"1,400.00",
MHCLG,PINS,12/02/2019,NSI Fees & Expenses,NSI Expenses Planning,GRESTY LAND AGENCY LTD,,Micro,,2100068439,,PE9 4EF,110.85,
MHCLG,PINS,12/02/2019,NSI Fees & Expenses,NSI Fees Planning,GRESTY LAND AGENCY LTD,,Micro,,2100068442,,PE9 4EF,"1,400.00",
MHCLG,PINS,12/02/2019,NSI Fees & Expenses,NSI Expenses Planning,GRESTY LAND AGENCY LTD,,Micro,,2100068442,,PE9 4EF,89.70,
MHCLG,PINS,12/02/2019,NSI Fees & Expenses,NSI Fees Planning,GRESTY LAND AGENCY LTD,,Micro,,2100068443,,PE9 4EF,"1,400.00",
MHCLG,PINS,12/02/2019,NSI Fees & Expenses,NSI Expenses Planning,GRESTY LAND AGENCY LTD,,Micro,,2100068443,,PE9 4EF,112.65,
MHCLG,PINS,12/02/2019,NSI Fees & Expenses,NSI Fees Planning,GRESTY LAND AGENCY LTD,,Micro,,2100068444,,PE9 4EF,"1,400.00",
MHCLG,PINS,12/02/2019,NSI Fees & Expenses,NSI Expenses Planning,GRESTY LAND AGENCY LTD,,Micro,,2100068444,,PE9 4EF,149.10,
MHCLG,PINS,12/02/2019,NSI Fees & Expenses,NSI Fees Planning,GRESTY LAND AGENCY LTD,,Micro,,2100068445,,PE9 4EF,"1,400.00",
MHCLG,PINS,12/02/2019,NSI Fees & Expenses,NSI Expenses Planning,GRESTY LAND AGENCY LTD,,Micro,,2100068445,,PE9 4EF,90.60,
MHCLG,PINS,12/02/2019,NSI Fees & Expenses,NSI Fees Planning,INSPIRE PLANNING SOLUTIONS,,Micro,,2100068497,,SK3 0XA,"1,050.00",
MHCLG,PINS,12/02/2019,NSI Fees & Expenses,NSI Expenses Planning,INSPIRE PLANNING SOLUTIONS,,Micro,,2100068497,,SK3 0XA,710.47,
MHCLG,PINS,12/02/2019,NSI Fees & Expenses,NSI Fees Planning,INSPIRE PLANNING SOLUTIONS,,Micro,,2100068499,,SK3 0XA,"1,680.00",
MHCLG,PINS,12/02/2019,NSI Fees & Expenses,NSI Expenses Planning,INSPIRE PLANNING SOLUTIONS,,Micro,,2100068499,,SK3 0XA,78.52,
MHCLG,PINS,12/02/2019,NSI Fees & Expenses,NSI Fees Planning,INSPIRE PLANNING SOLUTIONS,,Micro,,2100068500,,SK3 0XA,"1,260.00",
MHCLG,PINS,12/02/2019,NSI Fees & Expenses,NSI Expenses Planning,INSPIRE PLANNING SOLUTIONS,,Micro,,2100068500,,SK3 0XA,85.31,
MHCLG,PINS,12/02/2019,NSI Fees & Expenses,NSI Fees Planning,JDA DEVELOPMENT & PLANNING SERVICE,,Micro,,2100068506,,TA14 6PT,"1,750.00",
MHCLG,PINS,12/02/2019,NSI Fees & Expenses,NSI Expenses Planning,JDA DEVELOPMENT & PLANNING SERVICE,,Micro,,2100068506,,TA14 6PT,73.50,
MHCLG,PINS,12/02/2019,NSI Fees & Expenses,NSI Fees Planning,JDA DEVELOPMENT & PLANNING SERVICE,,Micro,,2100068507,,TA14 6PT,500.00,
MHCLG,PINS,12/02/2019,NSI Fees & Expenses,NSI Expenses Planning,JDA DEVELOPMENT & PLANNING SERVICE,,Micro,,2100068507,,TA14 6PT,333.05,
MHCLG,PINS,12/02/2019,NSI Fees & Expenses,NSI Fees Planning,KIM BENNETT PLANNING SERVICES,,Micro,,2100068560,,CT2 7ET,"1,050.00",
MHCLG,PINS,12/02/2019,NSI Fees & Expenses,NSI Expenses Planning,KIM BENNETT PLANNING SERVICES,,Micro,,2100068560,,CT2 7ET,37.35,
MHCLG,PINS,12/02/2019,NSI Fees & Expenses,NSI Fees Planning,LEIGH & GLENNIE LTD,,Micro,,2100068437,,SL5 9EA,900.00,
MHCLG,PINS,12/02/2019,NSI Fees & Expenses,NSI Expenses Planning,LEIGH & GLENNIE LTD,,Micro,,2100068437,,SL5 9EA,92.16,
MHCLG,PINS,12/02/2019,NSI Fees & Expenses,NSI Fees Planning,LEIGH & GLENNIE LTD,,Micro,,2100068438,,SL5 9EA,"2,100.00",
MHCLG,PINS,12/02/2019,NSI Fees & Expenses,NSI Expenses Planning,LEIGH & GLENNIE LTD,,Micro,,2100068438,,SL5 9EA,101.70,
MHCLG,PINS,12/02/2019,NSI Fees & Expenses,NSI Fees Planning,MARTIN ANDREWS PLANNING CONSULTANCY,,Micro,,2100068565,,BH15 1HH,"2,040.00",
MHCLG,PINS,12/02/2019,NSI Fees & Expenses,NSI Expenses Planning,MARTIN ANDREWS PLANNING CONSULTANCY,,Micro,,2100068565,,BH15 1HH,125.46,
MHCLG,PINS,12/02/2019,NSI Fees & Expenses,NSI Fees Planning,MARTIN SEDDON LIMITED,,Micro,,2100068453,,DE4 2JP,600.00,
MHCLG,PINS,12/02/2019,NSI Fees & Expenses,NSI Expenses Planning,MARTIN SEDDON LIMITED,,Micro,,2100068453,,DE4 2JP,379.15,
MHCLG,PINS,12/02/2019,NSI Fees & Expenses,NSI Fees Planning,PETER SEDGWICK PLANNING,,Small,,2100068390,,SA61 2SJ,"1,650.00",
MHCLG,PINS,12/02/2019,NSI Fees & Expenses,NSI Expenses Planning,PETER SEDGWICK PLANNING,,Small,,2100068390,,SA61 2SJ,302.75,
MHCLG,PINS,12/02/2019,NSI Fees & Expenses,NSI Fees Planning,PJS DEVELOPMENT SOLUTIONS LTD,,Micro,,2100068448,,GL2 0DU,600.00,
MHCLG,PINS,12/02/2019,NSI Fees & Expenses,NSI Expenses Planning,PJS DEVELOPMENT SOLUTIONS LTD,,Micro,,2100068448,,GL2 0DU,46.86,
MHCLG,PINS,12/02/2019,NSI Fees & Expenses,NSI Fees Planning,RCA REGENERATION LTD,,Small,,2100068449,,WR9 0QE,"2,040.00",
MHCLG,PINS,12/02/2019,NSI Fees & Expenses,NSI Expenses Planning,RCA REGENERATION LTD,,Small,,2100068449,,WR9 0QE,106.20,
MHCLG,PINS,12/02/2019,NSI Fees & Expenses,NSI Fees Planning,S P PLANNING,,Small,,2100068563,,EC1M 5QA,600.00,
MHCLG,PINS,12/02/2019,NSI Fees & Expenses,NSI Fees Planning,SANDRA PRAIL LTD,,Micro,,2100068450,,BN16 1RX,600.00,
MHCLG,PINS,12/02/2019,NSI Fees & Expenses,NSI Expenses Planning,SANDRA PRAIL LTD,,Micro,,2100068450,,BN16 1RX,382.14,
MHCLG,PINS,12/02/2019,NSI Fees & Expenses,NSI Fees Planning,STAR PLANNING & DEVELOPMENT LTD,,Micro,,2100068564,,B14 6BX,"1,788.00",
MHCLG,PINS,12/02/2019,NSI Fees & Expenses,NSI Expenses Planning,STAR PLANNING & DEVELOPMENT LTD,,Micro,,2100068564,,B14 6BX,125.58,
MHCLG,PINS,12/02/2019,NSI Fees & Expenses,NSI Fees Planning,STAR PLANNING & DEVELOPMENT LTD,,Micro,,2100068566,,B14 6BX,"1,890.00",
MHCLG,PINS,12/02/2019,NSI Fees & Expenses,NSI Expenses Planning,STAR PLANNING & DEVELOPMENT LTD,,Micro,,2100068566,,B14 6BX,101.76,
MHCLG,PINS,12/02/2019,NSI Fees & Expenses,NSI Fees Planning,STAR PLANNING & DEVELOPMENT LTD,,Micro,,2100068568,,B14 6BX,"2,574.00",
MHCLG,PINS,12/02/2019,NSI Fees & Expenses,NSI Expenses Planning,STAR PLANNING & DEVELOPMENT LTD,,Micro,,2100068568,,B14 6BX,105.12,
MHCLG,PINS,12/02/2019,NSI Fees & Expenses,NSI Fees Planning,TERRENCE KEMMANN-LANE,,Data Not Provided,,2100068451,,IP10 0ET,"7,200.00",
MHCLG,PINS,12/02/2019,NSI Fees & Expenses,NSI Expenses Planning,TERRENCE KEMMANN-LANE,,Data Not Provided,,2100068451,,IP10 0ET,316.05,
MHCLG,PINS,12/02/2019,NSI Fees & Expenses,NSI Fees Planning,VICTOR CALLISTER,,Small,,2100068502,,E1 1LQ,"1,750.00",
MHCLG,PINS,12/02/2019,NSI Fees & Expenses,NSI Expenses Planning,VICTOR CALLISTER,,Small,,2100068502,,E1 1LQ,18.00,
MHCLG,PINS,13/02/2019,Agency Staff,Human Resources,HAYS SPECIALIST RECRUITMENT LTD,,Large,,5106243686,Workforce planner,NW1 2AF,"2,269.98",
MHCLG,PINS,13/02/2019,Agency Staff,Human Resources,HAYS SPECIALIST RECRUITMENT LTD,,Large,,5106243746,Workforce planner,NW1 2AF,"2,269.98",
MHCLG,PINS,13/02/2019,Agency Staff,Planning Casework Operations,REED SPECIALIST RECRUITMENT LTD,,Large,,5106243759,Agency AO PCO GD,SW20 0BA,536.18,
MHCLG,PINS,13/02/2019,Agency Staff,Enforcements,REED SPECIALIST RECRUITMENT LTD,,Large,,5106243787,Agency Staff RT,SW20 0BA,548.64,
MHCLG,PINS,13/02/2019,Agency Staff,"Policy, Knowledge & Quality",REED SPECIALIST RECRUITMENT LTD,,Large,,5106243789,Agency Staff for Library,SW20 0BA,583.63,
MHCLG,PINS,13/02/2019,Agency Staff,Inspector Development & Support Team,REED SPECIALIST RECRUITMENT LTD,,Large,,5106243794,Temp staff for IDST-SC,SW20 0BA,532.85,
MHCLG,PINS,13/02/2019,IT SUPPORT,TR People,HAYS SPECIALIST RECRUITMENT LTD,,Large,,5106243647,End of Dec Extension HR BP-SL,NW1 2AF,"3,832.56",
MHCLG,PINS,13/02/2019,NSI Fees & Expenses,NSI Fees Planning,ELIZABETH LAWRENCE LTD,,Micro,,2100068611,,RH20 3LY,"2,100.00",
MHCLG,PINS,13/02/2019,NSI Fees & Expenses,NSI Expenses Planning,ELIZABETH LAWRENCE LTD,,Micro,,2100068611,,RH20 3LY,91.26,
MHCLG,PINS,13/02/2019,NSI Fees & Expenses,NSI Fees Planning,GARY DEANE ASSOCIATES LIMITED,,Micro,,2100068613,,M33 6RG,"3,180.00",
MHCLG,PINS,13/02/2019,NSI Fees & Expenses,NSI Expenses Planning,GARY DEANE ASSOCIATES LIMITED,,Micro,,2100068613,,M33 6RG,250.02,
MHCLG,PINS,13/02/2019,Training,Wales Director,INST PUBLIC RIGHTS WAY MANGMT LTD,,Micro,,5106243754,Training,CA11 1BL,808.00,
MHCLG,PINS,14/02/2019,Accommodation Service Charges,Estates,DEPT FOR EDUCATION,,Public Bodies,,5106243827,2017/18 TQH ASC,FY5 3TA,"11,305.56",
MHCLG,PINS,14/02/2019,Accommodation Service Charges,Estates,DEPT FOR EDUCATION,,Public Bodies,,5106243828,2017/18 TQH ASC,FY5 3TA,"11,305.56",
MHCLG,PINS,14/02/2019,Accommodation Service Charges,Estates,DEPT FOR EDUCATION,,Public Bodies,,5106243829,2017/18 TQH ASC,FY5 3TA,"11,305.56",
MHCLG,PINS,14/02/2019,Accommodation Service Charges,Estates,DEPT FOR EDUCATION,,Public Bodies,,5106243830,2017/18 TQH ASC,FY5 3TA,"11,305.56",
MHCLG,PINS,14/02/2019,Agency Staff,Planning Casework Operations,REED SPECIALIST RECRUITMENT LTD,,Large,,5106243760,AO AGENCY STAFF JJF,SW20 0BA,433.67,
MHCLG,PINS,14/02/2019,Agency Staff,Inspector Development & Support Team,REED SPECIALIST RECRUITMENT LTD,,Large,,5106243761,Agency EO IDST,SW20 0BA,610.39,
MHCLG,PINS,14/02/2019,Electricity,Estates,DEPT FOR EDUCATION,,Public Bodies,,5106243827,2017/18 TQH Electricity,FY5 3TA,"24,717.60",
MHCLG,PINS,14/02/2019,Electricity,Estates,DEPT FOR EDUCATION,,Public Bodies,,5106243828,2017/18 TQH Electricity,FY5 3TA,"24,717.60",
MHCLG,PINS,14/02/2019,Electricity,Estates,DEPT FOR EDUCATION,,Public Bodies,,5106243829,2017/18 TQH Electricity,FY5 3TA,"24,717.60",
MHCLG,PINS,14/02/2019,Electricity,Estates,DEPT FOR EDUCATION,,Public Bodies,,5106243830,2017/18 TQH Electricity,FY5 3TA,"24,717.60",
MHCLG,PINS,14/02/2019,EXP � PURCHASE OF GOODS /SERVICES R & D,Research and Development,HAYS SPECIALIST RECRUITMENT LTD,,Large,,5106243573,ODT Copywriter Resource,NW1 2AF,"1,389.50",
MHCLG,PINS,14/02/2019,Facilities Management (ISD use only),Estates,DEPT FOR EDUCATION,,Public Bodies,,5106243827,2016/17 TQH Reconciliation,FY5 3TA,"9,691.26",
MHCLG,PINS,14/02/2019,Facilities Management (ISD use only),Estates,DEPT FOR EDUCATION,,Public Bodies,,5106243827,2017/18 TQH Depreciation,FY5 3TA,"4,600.57",
MHCLG,PINS,14/02/2019,Facilities Management (ISD use only),Estates,DEPT FOR EDUCATION,,Public Bodies,,5106243827,2017/18 TQH FM,FY5 3TA,"119,322.98",
MHCLG,PINS,14/02/2019,Facilities Management (ISD use only),Estates,DEPT FOR EDUCATION,,Public Bodies,,5106243828,2017/18 TQH Depreciation,FY5 3TA,"4,600.57",
MHCLG,PINS,14/02/2019,Facilities Management (ISD use only),Estates,DEPT FOR EDUCATION,,Public Bodies,,5106243828,2017/18 TQH FM,FY5 3TA,"119,322.98",
MHCLG,PINS,14/02/2019,Facilities Management (ISD use only),Estates,DEPT FOR EDUCATION,,Public Bodies,,5106243829,2017/18 TQH Depreciation,FY5 3TA,"4,600.57",
MHCLG,PINS,14/02/2019,Facilities Management (ISD use only),Estates,DEPT FOR EDUCATION,,Public Bodies,,5106243829,2017/18 TQH FM,FY5 3TA,"119,322.98",
MHCLG,PINS,14/02/2019,Facilities Management (ISD use only),Estates,DEPT FOR EDUCATION,,Public Bodies,,5106243830,2017/18 TQH Depreciation,FY5 3TA,"4,600.57",
MHCLG,PINS,14/02/2019,Facilities Management (ISD use only),Estates,DEPT FOR EDUCATION,,Public Bodies,,5106243830,2017/18 TQH FM,FY5 3TA,"119,322.98",
MHCLG,PINS,14/02/2019,Facilities Management (ISD use only),Estates,DEPT FOR EDUCATION,,Public Bodies,,5106243830,2017/18 TQH Reconciliation,FY5 3TA,"10,806.45",
MHCLG,PINS,14/02/2019,Gas,Estates,DEPT FOR EDUCATION,,Public Bodies,,5106243827,2017/18 TQH Gas,FY5 3TA,"2,574.75",
MHCLG,PINS,14/02/2019,Gas,Estates,DEPT FOR EDUCATION,,Public Bodies,,5106243828,2017/18 TQH Gas,FY5 3TA,"2,574.75",
MHCLG,PINS,14/02/2019,Gas,Estates,DEPT FOR EDUCATION,,Public Bodies,,5106243829,2017/18 TQH Gas,FY5 3TA,"2,574.75",
MHCLG,PINS,14/02/2019,Gas,Estates,DEPT FOR EDUCATION,,Public Bodies,,5106243830,2017/18 TQH Gas,FY5 3TA,"2,574.75",
MHCLG,PINS,14/02/2019,"IT - PC, Network & Hardware",Estates,DEPT FOR EDUCATION,,Public Bodies,,5106243827,2017/18 TQH Gov WiFi,FY5 3TA,"5,750.28",
MHCLG,PINS,14/02/2019,"IT - PC, Network & Hardware",Estates,DEPT FOR EDUCATION,,Public Bodies,,5106243828,2017/18 TQH Gov WiFi,FY5 3TA,"5,750.28",
MHCLG,PINS,14/02/2019,"IT - PC, Network & Hardware",Estates,DEPT FOR EDUCATION,,Public Bodies,,5106243829,2017/18 TQH Gov WiFi,FY5 3TA,"5,750.28",
MHCLG,PINS,14/02/2019,"IT - PC, Network & Hardware",Estates,DEPT FOR EDUCATION,,Public Bodies,,5106243830,2017/18 TQH Gov WiFi,FY5 3TA,"5,750.28",
MHCLG,PINS,14/02/2019,IT SUPPORT,Differences - Central,HAYS SPECIALIST RECRUITMENT LTD,,Large,,5106243657,Research & Development for Stats ODT,NW1 2AF,"2,682.00",
MHCLG,PINS,14/02/2019,IT SUPPORT,ICT Digital Services,THIRTY FOUR FEET LTD,,Micro,,5106243708,IT tester services - contract extension,NP15 1QB,"2,100.00",
MHCLG,PINS,14/02/2019,Payroll Services,Human Resources,CGI IT UK LIMITED,,Large,,5106243800,Payroll Service 2018/19,CF31 9AP,"6,196.06",
MHCLG,PINS,14/02/2019,Rates,Estates,DEPT FOR EDUCATION,,Public Bodies,,5106243827,2017/18 TQH Rates,FY5 3TA,"125,386.03",
MHCLG,PINS,14/02/2019,Rates,Estates,DEPT FOR EDUCATION,,Public Bodies,,5106243828,2017/18 TQH Rates,FY5 3TA,"125,386.03",
MHCLG,PINS,14/02/2019,Rates,Estates,DEPT FOR EDUCATION,,Public Bodies,,5106243829,2017/18 TQH Rates,FY5 3TA,"125,386.03",
MHCLG,PINS,14/02/2019,Rates,Estates,DEPT FOR EDUCATION,,Public Bodies,,5106243830,2017/18 TQH Rates,FY5 3TA,"125,386.03",
MHCLG,PINS,14/02/2019,Rent,Estates,DEPT FOR EDUCATION,,Public Bodies,,5106243827,2017/18 TQH Rent,FY5 3TA,"368,129.17",
MHCLG,PINS,14/02/2019,Rent,Estates,DEPT FOR EDUCATION,,Public Bodies,,5106243828,2017/18 TQH Rent,FY5 3TA,"368,129.17",
MHCLG,PINS,14/02/2019,Rent,Estates,DEPT FOR EDUCATION,,Public Bodies,,5106243829,2017/18 TQH Rent,FY5 3TA,"368,129.17",
MHCLG,PINS,14/02/2019,Rent,Estates,DEPT FOR EDUCATION,,Public Bodies,,5106243830,2017/18 TQH Rent,FY5 3TA,"368,129.17",
MHCLG,PINS,14/02/2019,Rent,Wales Director,MERTHYR TYDFIL CBC,,Data Not Provided,,5106243578,Room Hire,CF47 8AN,426.00,
MHCLG,PINS,14/02/2019,Specialist Technical Support,ICT Digital Services,REED SPECIALIST RECRUITMENT LTD,,Large,,5106243757,ITMP resource,SW20 0BA,969.60,
MHCLG,PINS,14/02/2019,Specialist Technical Support,ICT Digital Services,REED SPECIALIST RECRUITMENT LTD,,Large,,5106243758,Contract extension,SW20 0BA,"1,012.96",
MHCLG,PINS,14/02/2019,Travel and Subsistence Account,Inspector Costs,REDFERN TRAVEL LIMITED,,Small,,5106243832,AIR TRAVEL,BD1 3AZ,690.60,
MHCLG,PINS,14/02/2019,Travel and Subsistence Account,Inspector Costs,REDFERN TRAVEL LIMITED,,Small,,5106243832,RAIL TRAVEL,BD1 3AZ,"51,765.83",
MHCLG,PINS,14/02/2019,Travel and Subsistence Account,Inspector Costs,REDFERN TRAVEL LIMITED,,Small,,5106243832,WEB TRANSACTION,BD1 3AZ,328.27,
MHCLG,PINS,14/02/2019,Travel and Subsistence Account,Inspector Costs,REDFERN TRAVEL LIMITED,,Small,,5106243832,BILLBACK FEE,BD1 3AZ,35.00,
MHCLG,PINS,14/02/2019,Travel and Subsistence Account,Inspector Costs,REDFERN TRAVEL LIMITED,,Small,,5106243832,HOTEL ACCOMMODATION,BD1 3AZ,"87,102.84",
MHCLG,PINS,14/02/2019,Travel and Subsistence Account,Inspector Costs,REDFERN TRAVEL LIMITED,,Small,,5106243832,HOTEL FEES,BD1 3AZ,411.82,
MHCLG,PINS,14/02/2019,Water,Estates,DEPT FOR EDUCATION,,Public Bodies,,5106243827,2017/18 TQH Water,FY5 3TA,"2,145.63",
MHCLG,PINS,14/02/2019,Water,Estates,DEPT FOR EDUCATION,,Public Bodies,,5106243828,2017/18 TQH Water,FY5 3TA,"2,145.63",
MHCLG,PINS,14/02/2019,Water,Estates,DEPT FOR EDUCATION,,Public Bodies,,5106243829,2017/18 TQH Water,FY5 3TA,"2,145.63",
MHCLG,PINS,14/02/2019,Water,Estates,DEPT FOR EDUCATION,,Public Bodies,,5106243830,2017/18 TQH Water,FY5 3TA,"2,145.63",
MHCLG,PINS,15/02/2019,Agency Staff,Environment & Transport,REED SPECIALIST RECRUITMENT LTD,,Large,,5106243575,AO Specialist Case Officer HL,SW20 0BA,517.04,
MHCLG,PINS,15/02/2019,Agency Staff,"Finance, Commercial & Performance",REED SPECIALIST RECRUITMENT LTD,,Large,,5106243863,EO for Finance ext,SW20 0BA,727.82,
MHCLG,PINS,15/02/2019,IT SUPPORT,Differences - Central,HAYS SPECIALIST RECRUITMENT LTD,,Large,,5106243877,Research & Development for Stats ODT,NW1 2AF,"2,682.00",
MHCLG,PINS,15/02/2019,Physical Storage,Wales Director,RESTORE PLC,,Large,,5106243815,Storage,RH1 5DY,"1,174.94",
MHCLG,PINS,18/02/2019,EXP � PURCHASE OF GOODS /SERVICES R & D,Research and Development,GOPRO CONSULTING LTD,,Small,,5106243934,Alpha Extension - Variation 3,WC1N 2EB,"8,910.00",
MHCLG,PINS,18/02/2019,Office Supplies,Business Support,BANNER BUSINESS SUPPLIES LTD,,Large,,5106243944,Office Stationery 18-19,S9 1XU,215.71,
MHCLG,PINS,18/02/2019,Office Supplies,Business Support,BANNER BUSINESS SUPPLIES LTD,,Large,,5106243944,Paper 18-19,S9 1XU,281.61,
MHCLG,PINS,18/02/2019,Specialist Technical Support,TR Transformation,GOPRO CONSULTING LTD,,Small,,5106243934,Alpha Phase 1 Extension - Variation 2,WC1N 2EB,"2,806.88",
MHCLG,PINS,18/02/2019,Technical Aids for the disabled,Human Resources,HEALTH  MANAGEMENT LTD,,Medium,,2100068810,Health Managemtn 2018/19,BN8 5NN,"-1,163.40",
MHCLG,PINS,18/02/2019,Technical Aids for the disabled,Human Resources,HEALTH  MANAGEMENT LTD,,Medium,,5106243855,Health Managemtn 2018/19,BN8 5NN,"1,163.40",
MHCLG,PINS,18/02/2019,Training,Transformation Prog Management Office,UNIVERSITY OF BUCKINGHAM,,Data Not Provided,,5106243884,Training,MK18 1EG,"3,750.00",
MHCLG,PINS,18/02/2019,Web Services,ICT Digital Services,MEMSET LIMITED,,Small,,5106243947,Hosting of mini servers FY 2018-19,GU6 8TB,"1,214.68",
MHCLG,PINS,18/02/2019,Web Services,ICT Digital Services,MEMSET LIMITED,,Small,,5106243948,Hosting of mini servers FY 2018-19,GU6 8TB,709.20,
MHCLG,PINS,19/02/2019,Agency Staff,Planning Casework Operations,REED SPECIALIST RECRUITMENT LTD,,Large,,5106243954,Agency AO PCO GD,SW20 0BA,402.14,
MHCLG,PINS,19/02/2019,IT SUPPORT,TR People,HAYS SPECIALIST RECRUITMENT LTD,,Large,,5106243891,End of Dec Extension HR BP-SL,NW1 2AF,"3,832.56",
MHCLG,PINS,19/02/2019,IT SUPPORT,ICT Digital Services,METHODS PROFESSIONAL SERVICES,,Small,,2100068877,Programme Manager Contract,EC1A 4EN,"-24,420.00",
MHCLG,PINS,19/02/2019,IT SUPPORT,ICT Digital Services,METHODS PROFESSIONAL SERVICES,,Small,,5106243823,Programme Manager Contract,EC1A 4EN,"24,420.00",
MHCLG,PINS,19/02/2019,IT SUPPORT,ICT Digital Services,THIRTY FOUR FEET LTD,,Micro,,5106243965,IT tester services - contract extension,NP15 1QB,"2,100.00",
MHCLG,PINS,19/02/2019,Mobile phone costs,ICT Digital Services,GAMMA TELECOM LTD,,Large,,5106243962,Mobile telephony services 2018-19,EC4M 7RD,"6,675.82",
MHCLG,PINS,19/02/2019,Specialist Technical Support,ICT Digital Services,ALLEN LANE LTD,,Medium,,5106243860,Office 365 technical specialist from,SW1Y 6RJ,"2,681.94",
MHCLG,PINS,19/02/2019,Specialist Technical Support,ICT Digital Services,REED SPECIALIST RECRUITMENT LTD,,Large,,5106243966,Contract extension up to 29/03/19,SW20 0BA,864.38,
MHCLG,PINS,20/02/2019,Accommodation Service Charges,Estates,MINISTRY OF JUSTICE,,Data Not Provided,,5106243996,2018/19 TQH ASC,NP10 8BA,"10,882.23",
MHCLG,PINS,20/02/2019,Agency Staff,"Policy, Knowledge & Quality",REED SPECIALIST RECRUITMENT LTD,,Large,,5106243892,Agency Staff for Library,SW20 0BA,490.42,
MHCLG,PINS,20/02/2019,Agency Staff,Inspector Development & Support Team,REED SPECIALIST RECRUITMENT LTD,,Large,,5106243997,Agency EO IDST,SW20 0BA,841.34,
MHCLG,PINS,20/02/2019,Agency Staff,Inspector Development & Support Team,REED SPECIALIST RECRUITMENT LTD,,Large,,5106243998,Temp staff for IDST-SC,SW20 0BA,525.01,
MHCLG,PINS,20/02/2019,Common Land,Common Land,D E F R A,,Public Bodies,,2100068874,,YO1 7PX,"19,600.00",
MHCLG,PINS,20/02/2019,Electricity,Estates,MINISTRY OF JUSTICE,,Data Not Provided,,5106243996,2018/19 TQH Electricity,NP10 8BA,"22,309.10",
MHCLG,PINS,20/02/2019,Facilities Management (ISD use only),Estates,MINISTRY OF JUSTICE,,Data Not Provided,,5106243996,2018/19 Depreciation,NP10 8BA,"4,613.76",
MHCLG,PINS,20/02/2019,Facilities Management (ISD use only),Estates,MINISTRY OF JUSTICE,,Data Not Provided,,5106243996,2018/19 TQH FM,NP10 8BA,"142,431.06",
MHCLG,PINS,20/02/2019,Facilities Management (ISD use only),Estates,MINISTRY OF JUSTICE,,Data Not Provided,,5106243996,2018/19 TQH Insurance,NP10 8BA,420.81,
MHCLG,PINS,20/02/2019,Gas,Estates,MINISTRY OF JUSTICE,,Data Not Provided,,5106243996,2018/19 TQH Gas,NP10 8BA,"1,925.00",
MHCLG,PINS,20/02/2019,"IT - PC, Network & Hardware",Estates,MINISTRY OF JUSTICE,,Data Not Provided,,5106243996,2018/19 Gov WiFi,NP10 8BA,"1,445.99",
MHCLG,PINS,20/02/2019,Legal Fees,Wales Director,GOVERNMENT LEGAL DEPT,,Public Bodies,,2100068911,Legal Fees / Services,WC2B 4TS,"-1,767.10",
MHCLG,PINS,20/02/2019,Legal Fees,Wales Director,GOVERNMENT LEGAL DEPT,,Public Bodies,,5106243972,Legal Fees / Services,WC2B 4TS,"1,767.10",
MHCLG,PINS,20/02/2019,NSI Fees & Expenses,NSI Fees Planning,DAVIS PLANNING LIMITED,,Small,,2100068696,,RG41 3HL,"2,166.00",
MHCLG,PINS,20/02/2019,NSI Fees & Expenses,NSI Fees Planning,EGGLETON PLANNING AND DESIGN,,Micro,,2100068746,,HG4 2QF,"1,668.00",
MHCLG,PINS,20/02/2019,NSI Fees & Expenses,NSI Expenses Planning,EGGLETON PLANNING AND DESIGN,,Micro,,2100068746,,HG4 2QF,415.12,
MHCLG,PINS,20/02/2019,NSI Fees & Expenses,NSI Fees Planning,ELIZABETH LAWRENCE LTD,,Micro,,2100068819,,RH20 3LY,"2,100.00",
MHCLG,PINS,20/02/2019,NSI Fees & Expenses,NSI Expenses Planning,ELIZABETH LAWRENCE LTD,,Micro,,2100068819,,RH20 3LY,91.26,
MHCLG,PINS,20/02/2019,NSI Fees & Expenses,NSI Fees Planning,ELIZABETH LAWRENCE LTD,,Micro,,2100068820,,RH20 3LY,600.00,
MHCLG,PINS,20/02/2019,NSI Fees & Expenses,NSI Expenses Planning,ELIZABETH LAWRENCE LTD,,Micro,,2100068820,,RH20 3LY,406.92,
MHCLG,PINS,20/02/2019,NSI Fees & Expenses,NSI Fees Planning,ENERGIA CONSULTANTS LTD,,Micro,,2100068871,,GL6 0SA,"1,400.00",
MHCLG,PINS,20/02/2019,NSI Fees & Expenses,NSI Expenses Planning,ENERGIA CONSULTANTS LTD,,Micro,,2100068871,,GL6 0SA,121.55,
MHCLG,PINS,20/02/2019,NSI Fees & Expenses,NSI Fees Planning,G R PLANNING CONSULTANCY LTD,,Small,,2100068822,,TQ6 9RG,"1,530.00",
MHCLG,PINS,20/02/2019,NSI Fees & Expenses,NSI Expenses Planning,G R PLANNING CONSULTANCY LTD,,Small,,2100068822,,TQ6 9RG,156.42,
MHCLG,PINS,20/02/2019,NSI Fees & Expenses,NSI Fees Planning,HARTLEY PLANNING&DEVELOPMENT ASSOCI,,Micro,,2100068650,,BB4 8TB,"1,250.00",
MHCLG,PINS,20/02/2019,NSI Fees & Expenses,NSI Expenses Planning,HARTLEY PLANNING&DEVELOPMENT ASSOCI,,Micro,,2100068650,,BB4 8TB,723.91,
MHCLG,PINS,20/02/2019,NSI Fees & Expenses,NSI Fees Planning,JOHN WHALLEY,,Micro,,2100068821,,LL54 5BS,"1,565.00",
MHCLG,PINS,20/02/2019,NSI Fees & Expenses,NSI Expenses Planning,JOHN WHALLEY,,Micro,,2100068821,,LL54 5BS,221.10,
MHCLG,PINS,20/02/2019,NSI Fees & Expenses,NSI Fees Planning,MARTIN ANDREWS PLANNING CONSULTANCY,,Micro,,2100068651,,BH15 1HH,"2,520.00",
MHCLG,PINS,20/02/2019,NSI Fees & Expenses,NSI Expenses Planning,MARTIN ANDREWS PLANNING CONSULTANCY,,Micro,,2100068651,,BH15 1HH,132.12,
MHCLG,PINS,20/02/2019,NSI Fees & Expenses,NSI Fees Planning,MARTIN ANDREWS PLANNING CONSULTANCY,,Micro,,2100068689,,BH15 1HH,"2,520.00",
MHCLG,PINS,20/02/2019,NSI Fees & Expenses,NSI Expenses Planning,MARTIN ANDREWS PLANNING CONSULTANCY,,Micro,,2100068689,,BH15 1HH,135.54,
MHCLG,PINS,20/02/2019,NSI Fees & Expenses,NSI Fees Planning,PEARSON PLANNING,,Small,,2100068692,,EH4 9BQ,"1,650.00",
MHCLG,PINS,20/02/2019,NSI Fees & Expenses,NSI Expenses Planning,PEARSON PLANNING,,Small,,2100068692,,EH4 9BQ,154.95,
MHCLG,PINS,20/02/2019,NSI Fees & Expenses,NSI Fees Planning,PLANNING SENSE LIMITED,,Small,,2100068744,,AL1 5EF,"2,040.00",
MHCLG,PINS,20/02/2019,NSI Fees & Expenses,NSI Expenses Planning,PLANNING SENSE LIMITED,,Small,,2100068744,,AL1 5EF,92.25,
MHCLG,PINS,20/02/2019,NSI Fees & Expenses,NSI Fees Planning,RACHAEL BARTLETT,,Small,,2100068748,,DN14 6JU,"1,505.00",
MHCLG,PINS,20/02/2019,NSI Fees & Expenses,NSI Expenses Planning,RACHAEL BARTLETT,,Small,,2100068748,,DN14 6JU,239.80,
MHCLG,PINS,20/02/2019,NSI Fees & Expenses,NSI Fees Planning,RACHAEL BARTLETT,,Small,,2100068869,,DN14 6JU,"1,400.00",
MHCLG,PINS,20/02/2019,NSI Fees & Expenses,NSI Expenses Planning,RACHAEL BARTLETT,,Small,,2100068869,,DN14 6JU,73.35,
MHCLG,PINS,20/02/2019,NSI Fees & Expenses,NSI Fees Planning,RCA REGENERATION LTD,,Small,,2100068747,,WR9 0QE,"2,250.00",
MHCLG,PINS,20/02/2019,NSI Fees & Expenses,NSI Expenses Planning,RCA REGENERATION LTD,,Small,,2100068747,,WR9 0QE,120.42,
MHCLG,PINS,20/02/2019,NSI Fees & Expenses,NSI Fees Planning,REBECCA McANDREW,,Micro,,2100068690,,NP44 6JD,"1,250.00",
MHCLG,PINS,20/02/2019,NSI Fees & Expenses,NSI Expenses Planning,REBECCA McANDREW,,Micro,,2100068690,,NP44 6JD,684.98,
MHCLG,PINS,20/02/2019,NSI Fees & Expenses,NSI Fees Planning,RICHMOND PLANNING AND MARKETING LTD,,Small,,2100068700,,B45 8HX,"1,700.00",
MHCLG,PINS,20/02/2019,NSI Fees & Expenses,NSI Expenses Planning,RICHMOND PLANNING AND MARKETING LTD,,Small,,2100068700,,B45 8HX,110.70,
MHCLG,PINS,20/02/2019,NSI Fees & Expenses,NSI Fees Planning,S P PLANNING,,Small,,2100068694,,EC1M 5QA,"1,680.00",
MHCLG,PINS,20/02/2019,NSI Fees & Expenses,NSI Expenses Planning,S P PLANNING,,Small,,2100068694,,EC1M 5QA,2.88,
MHCLG,PINS,20/02/2019,NSI Fees & Expenses,NSI Fees Planning,SANDRA PRAIL LTD,,Micro,,2100068872,,BN16 1RX,"1,620.00",
MHCLG,PINS,20/02/2019,NSI Fees & Expenses,NSI Expenses Planning,SANDRA PRAIL LTD,,Micro,,2100068872,,BN16 1RX,127.86,
MHCLG,PINS,20/02/2019,NSI Fees & Expenses,NSI Fees Planning,STUTCHBURY ASSOCIATES LTD,,Small,,2100068691,,BA2 7AJ,"1,700.00",
MHCLG,PINS,20/02/2019,NSI Fees & Expenses,NSI Expenses Planning,STUTCHBURY ASSOCIATES LTD,,Small,,2100068691,,BA2 7AJ,145.60,
MHCLG,PINS,20/02/2019,Rates,Estates,MINISTRY OF JUSTICE,,Data Not Provided,,5106243996,2018/19 TQH Rates,NP10 8BA,"129,420.74",
MHCLG,PINS,20/02/2019,Reimbursement of Home Working Costs,NSI Expenses Planning,DAVIS PLANNING LIMITED,,Small,,2100068696,,RG41 3HL,101.22,
MHCLG,PINS,20/02/2019,Rent,Estates,MINISTRY OF JUSTICE,,Data Not Provided,,5106243996,2018/19 TQH Rent,NP10 8BA,"369,184.58",
MHCLG,PINS,20/02/2019,Steady State Service Provision,Human Resources,HEALTH  MANAGEMENT LTD,,Medium,,5106243976,Health Management 2018/19,BN8 5NN,"1,163.40",
MHCLG,PINS,20/02/2019,Water,Estates,MINISTRY OF JUSTICE,,Data Not Provided,,5106243996,2018/19 TQH Water,NP10 8BA,"1,728.67",
MHCLG,PINS,21/02/2019,Accommodation Service Charges,Estates,MINISTRY OF JUSTICE,,Data Not Provided,,5106244057,2018/19 TQH ASC,NP10 8BA,"10,882.23",
MHCLG,PINS,21/02/2019,Agency Staff,Performance Recovery,HAYS SPECIALIST RECRUITMENT LTD,,Large,,5106243955,HR Recruitment Resource SC,NW1 2AF,663.56,
MHCLG,PINS,21/02/2019,Agency Staff,Human Resources,HAYS SPECIALIST RECRUITMENT LTD,,Large,,5106243960,HR Advice Resource LB,NW1 2AF,645.12,
MHCLG,PINS,21/02/2019,Agency Staff,Human Resources,HAYS SPECIALIST RECRUITMENT LTD,,Large,,5106244037,Workforce planner,NW1 2AF,"2,269.98",
MHCLG,PINS,21/02/2019,Agency Staff,Planning Casework Operations,REED SPECIALIST RECRUITMENT LTD,,Large,,5106244035,AO AGENCY STAFF JJF,SW20 0BA,510.68,
MHCLG,PINS,21/02/2019,Electricity,Estates,MINISTRY OF JUSTICE,,Data Not Provided,,5106244057,2018/19 TQH Electricity,NP10 8BA,"22,309.10",
MHCLG,PINS,21/02/2019,Facilities Management (ISD use only),Estates,MINISTRY OF JUSTICE,,Data Not Provided,,5106244057,2018/19 Depreciation,NP10 8BA,"4,613.76",
MHCLG,PINS,21/02/2019,Facilities Management (ISD use only),Estates,MINISTRY OF JUSTICE,,Data Not Provided,,5106244057,2018/19 TQH FM,NP10 8BA,"142,431.06",
MHCLG,PINS,21/02/2019,Facilities Management (ISD use only),Estates,MINISTRY OF JUSTICE,,Data Not Provided,,5106244057,2018/19 TQH Insurance,NP10 8BA,420.81,
MHCLG,PINS,21/02/2019,Gas,Estates,MINISTRY OF JUSTICE,,Data Not Provided,,5106244057,2018/19 TQH Gas,NP10 8BA,"1,925.00",
MHCLG,PINS,21/02/2019,"IT - PC, Network & Hardware",Estates,MINISTRY OF JUSTICE,,Data Not Provided,,5106244057,2018/19 Gov WiFi,NP10 8BA,"1,445.99",
MHCLG,PINS,21/02/2019,IT SUPPORT,ICT Digital Services,METHODS PROFESSIONAL SERVICES,,Small,,5106244013,Programme Manager Contract,EC1A 4EN,"24,420.00",
MHCLG,PINS,21/02/2019,Rates,Estates,MINISTRY OF JUSTICE,,Data Not Provided,,5106244057,2018/19 TQH Rates,NP10 8BA,"129,420.74",
MHCLG,PINS,21/02/2019,Rent,Estates,MINISTRY OF JUSTICE,,Data Not Provided,,5106244057,2018/19 TQH Rent,NP10 8BA,"369,184.58",
MHCLG,PINS,21/02/2019,Specialist Technical Support,ICT Digital Services,REED SPECIALIST RECRUITMENT LTD,,Large,,5106244028,ITMP resource,SW20 0BA,"1,212.00",
MHCLG,PINS,21/02/2019,Water,Estates,MINISTRY OF JUSTICE,,Data Not Provided,,5106244057,2018/19 TQH Water,NP10 8BA,"1,728.67",
MHCLG,PINS,22/02/2019,NSI Fees & Expenses,NSI Fees Planning,D C PLANNING LTD,,Data Not Provided,,2100068950,,BH14 8AL,"4,080.00",
MHCLG,PINS,22/02/2019,NSI Fees & Expenses,NSI Expenses Planning,D C PLANNING LTD,,Data Not Provided,,2100068950,,BH14 8AL,294.12,
MHCLG,PINS,22/02/2019,NSI Fees & Expenses,NSI Fees Planning,EGGLETON PLANNING AND DESIGN,,Micro,,2100068912,,HG4 2QF,750.00,
MHCLG,PINS,22/02/2019,NSI Fees & Expenses,NSI Expenses Planning,EGGLETON PLANNING AND DESIGN,,Micro,,2100068912,,HG4 2QF,615.90,
MHCLG,PINS,22/02/2019,NSI Fees & Expenses,NSI Fees Planning,INSPIRE PLANNING SOLUTIONS,,Micro,,2100068949,,SK3 0XA,"1,344.00",
MHCLG,PINS,22/02/2019,NSI Fees & Expenses,NSI Expenses Planning,INSPIRE PLANNING SOLUTIONS,,Micro,,2100068949,,SK3 0XA,138.37,
MHCLG,PINS,22/02/2019,NSI Fees & Expenses,NSI Fees Planning,LOCK ENVIRONMENTAL LTD,,Data Not Provided,,2100068943,,GL55 6QF,425.00,
MHCLG,PINS,22/02/2019,NSI Fees & Expenses,NSI Expenses Planning,LOCK ENVIRONMENTAL LTD,,Data Not Provided,,2100068943,,GL55 6QF,36.45,
MHCLG,PINS,22/02/2019,NSI Fees & Expenses,NSI Fees Planning,LOCK ENVIRONMENTAL LTD,,Data Not Provided,,2100068944,,GL55 6QF,600.00,
MHCLG,PINS,22/02/2019,NSI Fees & Expenses,NSI Expenses Planning,LOCK ENVIRONMENTAL LTD,,Data Not Provided,,2100068944,,GL55 6QF,36.45,
MHCLG,PINS,22/02/2019,NSI Fees & Expenses,NSI Fees Planning,LOCK ENVIRONMENTAL LTD,,Data Not Provided,,2100068946,,GL55 6QF,425.00,
MHCLG,PINS,22/02/2019,NSI Fees & Expenses,NSI Expenses Planning,LOCK ENVIRONMENTAL LTD,,Data Not Provided,,2100068946,,GL55 6QF,36.45,
MHCLG,PINS,22/02/2019,NSI Fees & Expenses,NSI Fees Planning,LOCK ENVIRONMENTAL LTD,,Data Not Provided,,2100068947,,GL55 6QF,425.00,
MHCLG,PINS,22/02/2019,NSI Fees & Expenses,NSI Expenses Planning,LOCK ENVIRONMENTAL LTD,,Data Not Provided,,2100068947,,GL55 6QF,36.45,
MHCLG,PINS,22/02/2019,NSI Fees & Expenses,NSI Fees Planning,PLANNING SENSE LIMITED,,Small,,2100068913,,AL1 5EF,"2,250.00",
MHCLG,PINS,22/02/2019,NSI Fees & Expenses,NSI Expenses Planning,PLANNING SENSE LIMITED,,Small,,2100068913,,AL1 5EF,68.40,
MHCLG,PINS,22/02/2019,NSI Fees & Expenses,NSI Fees Planning,SANDRA WHITEHEAD,,Micro,,2100068910,,PL14 4SR,"1,250.00",
MHCLG,PINS,22/02/2019,NSI Fees & Expenses,NSI Expenses Planning,SANDRA WHITEHEAD,,Micro,,2100068910,,PL14 4SR,514.65,
MHCLG,PINS,22/02/2019,Specialist Technical Support,ICT Digital Services,ALLEN LANE LTD,,Medium,,5106244064,Office 365 technical specialist from,SW1Y 6RJ,"2,681.94",
MHCLG,PINS,22/02/2019,Specialist Technical Support,ICT Digital Services,HAYS SPECIALIST RECRUITMENT LTD,,Large,,5106244039,PHP developer - National Infrastructure,NW1 2AF,"1,918.37",
MHCLG,PINS,22/02/2019,Web Services,TR Digital Transformation,PHOENIX SOFTWARE,,Medium,,5106244078,Microsoft Enterprise Mobility + Security,YO42 1NS,"1,309.04",
MHCLG,PINS,25/02/2019,Specialist Technical Support,"Finance, Commercial & Performance",ALLEN LANE LTD,,Medium,,5106243861,FPBP Resource ext,SW1Y 6RJ,"3,427.68",
MHCLG,PINS,25/02/2019,Steady State Service Provision,Human Resources,CABINET OFFICE,,Public Bodies,,5106244120,Pension Admin Charge 2018/19,FY5 3TA,"38,270.40",
MHCLG,PINS,25/02/2019,Training,Human Resources,HOWARD DAVIS CONSULTANCY LTD,,Micro,,5106244084,Exec Coaching - 3 sessions (SR),GL20 7SL,"1,050.00",
MHCLG,PINS,25/02/2019,Training,"Policy, Knowledge & Quality",PDP COMPANIES LTD,,Small,,5106244082,Prac cert in data protection - JF,SW9 6DE,"2,595.00",
MHCLG,PINS,26/02/2019,EXP � PURCHASE OF GOODS /SERVICES R & D,Research and Development,HAYS SPECIALIST RECRUITMENT LTD,,Large,,5106244172,ODT Copywriter Resource,NW1 2AF,794.00,
MHCLG,PINS,26/02/2019,EXP � PURCHASE OF GOODS /SERVICES R & D,Research and Development,HAYS SPECIALIST RECRUITMENT LTD,,Large,,5106244173,ODT Copywriter Resource,NW1 2AF,"1,389.50",
MHCLG,PINS,26/02/2019,EXP � PURCHASE OF GOODS /SERVICES R & D,Research and Development,HAYS SPECIALIST RECRUITMENT LTD,,Large,,5106244174,ODT Copywriter Resource,NW1 2AF,397.00,
MHCLG,PINS,26/02/2019,EXP � PURCHASE OF GOODS /SERVICES R & D,Research and Development,HAYS SPECIALIST RECRUITMENT LTD,,Large,,5106244175,ODT Copywriter Resource,NW1 2AF,"1,191.00",
MHCLG,PINS,26/02/2019,EXP � PURCHASE OF GOODS /SERVICES R & D,Research and Development,HAYS SPECIALIST RECRUITMENT LTD,,Large,,5106244176,ODT Copywriter Resource,NW1 2AF,992.50,
MHCLG,PINS,26/02/2019,EXP � PURCHASE OF GOODS /SERVICES R & D,Research and Development,HAYS SPECIALIST RECRUITMENT LTD,,Large,,5106244177,ODT Copywriter Resource,NW1 2AF,"1,191.00",
MHCLG,PINS,26/02/2019,IT SUPPORT,ICT Digital Services,HAYS SPECIALIST RECRUITMENT LTD,,Large,,5106244178,ITMP Delivery Manager,NW1 2AF,"4,660.50",
MHCLG,PINS,26/02/2019,IT SUPPORT,ICT Digital Services,HAYS SPECIALIST RECRUITMENT LTD,,Large,,5106244179,ITMP Delivery Manager,NW1 2AF,"4,660.50",
MHCLG,PINS,26/02/2019,Legal Fees,Wales Director,GOVERNMENT LEGAL DEPT,,Public Bodies,,5106244161,Legal Fees 2019,WC2B 4TS,"2,120.52",
MHCLG,PINS,26/02/2019,NSI Fees & Expenses,NSI Fees Planning,DAVIS PLANNING LIMITED,,Small,,2100069010,,RG41 3HL,"1,518.00",
MHCLG,PINS,26/02/2019,NSI Fees & Expenses,NSI Expenses Planning,DAVIS PLANNING LIMITED,,Small,,2100069010,,RG41 3HL,113.16,
MHCLG,PINS,26/02/2019,NSI Fees & Expenses,NSI Fees Planning,STORRIE PLANNING,,Small,,2100069011,,HD1 6RX,780.00,
MHCLG,PINS,26/02/2019,NSI Fees & Expenses,NSI Expenses Planning,STORRIE PLANNING,,Small,,2100069011,,HD1 6RX,253.18,
MHCLG,PINS,27/02/2019,Agency Staff,Human Resources,HAYS SPECIALIST RECRUITMENT LTD,,Large,,5106244186,HR Advice Resource LB,NW1 2AF,571.39,
MHCLG,PINS,27/02/2019,Agency Staff,Planning Casework Operations,REED SPECIALIST RECRUITMENT LTD,,Large,,5106244213,Agency AO PCO GD,SW20 0BA,519.94,
MHCLG,PINS,27/02/2019,Agency Staff,"Policy, Knowledge & Quality",REED SPECIALIST RECRUITMENT LTD,,Large,,5106244216,Agency Staff for Library,SW20 0BA,518.78,
MHCLG,PINS,27/02/2019,Agency Staff,"Finance, Commercial & Performance",REED SPECIALIST RECRUITMENT LTD,,Large,,5106244217,AA Storekeeper,SW20 0BA,309.30,
MHCLG,PINS,27/02/2019,Agency Staff,"Finance, Commercial & Performance",REED SPECIALIST RECRUITMENT LTD,,Large,,5106244218,AA Storekeeper,SW20 0BA,309.30,
MHCLG,PINS,27/02/2019,IT - Software Maintenance,ICT Digital Services,SOFTWARE BOX LTD,,Large,,5106244223,Licences & standard support,YO61 1ET,"259,451.68",
MHCLG,PINS,27/02/2019,IT SUPPORT,TR People,HAYS SPECIALIST RECRUITMENT LTD,,Large,,5106244221,End of Dec Extension HR BP-SL,NW1 2AF,"3,832.56",
MHCLG,PINS,27/02/2019,NSI Fees & Expenses,NSI Fees Planning,CHRIS THOMAS PLANNING,,Micro,,2100069017,,CH6 5QE,"1,400.00",
MHCLG,PINS,27/02/2019,NSI Fees & Expenses,NSI Expenses Planning,CHRIS THOMAS PLANNING,,Micro,,2100069017,,CH6 5QE,358.54,
MHCLG,PINS,27/02/2019,NSI Fees & Expenses,NSI Fees Planning,MR R J MAILE,,Not assigned,,2100069015,,BN11 1QG,"3,468.00",
MHCLG,PINS,27/02/2019,NSI Fees & Expenses,NSI Fees Planning,URBANGLOW DESIGN & HERITAGE LTD,,Micro,,2100069013,,LS3 1JY,"1,250.00",
MHCLG,PINS,27/02/2019,NSI Fees & Expenses,NSI Expenses Planning,URBANGLOW DESIGN & HERITAGE LTD,,Micro,,2100069013,,LS3 1JY,730.40,
MHCLG,PINS,27/02/2019,NSI Fees & Expenses,NSI Fees Planning,VICTOR CALLISTER,,Small,,2100069009,,E1 1LQ,"1,400.00",
MHCLG,PINS,27/02/2019,NSI Fees & Expenses,NSI Expenses Planning,VICTOR CALLISTER,,Small,,2100069009,,E1 1LQ,211.35,
MHCLG,PINS,27/02/2019,Office Supplies,Business Support,BANNER BUSINESS SUPPLIES LTD,,Large,,5106244212,Office Stationery 18-19,S9 1XU,597.01,
MHCLG,PINS,27/02/2019,Office Supplies,Business Support,BANNER BUSINESS SUPPLIES LTD,,Large,,5106244212,Paper 18-19,S9 1XU,325.96,
MHCLG,PINS,27/02/2019,Recruitment,Human Resources,CABINET OFFICE,,Public Bodies,,5106244095,SCS psychometeric testing,FY5 3TA,"7,673.40",
MHCLG,PINS,27/02/2019,Recruitment,Human Resources,CABINET OFFICE,,Public Bodies,,5106244099,SCS psychometeric testing,FY5 3TA,"4,157.70",
MHCLG,PINS,27/02/2019,Specialist Technical Support,ICT Digital Services,HAYS SPECIALIST RECRUITMENT LTD,,Large,,5106244222,PHP developer - National Infrastructure,NW1 2AF,"3,197.28",
MHCLG,PINS,27/02/2019,Specialist Technical Support,ICT Digital Services,REED SPECIALIST RECRUITMENT LTD,,Large,,5106244197,Contract extension,SW20 0BA,810.36,
MHCLG,PINS,27/02/2019,Translations,Wales Director,TROSOL CYFYNGEDIG,,Small,,2100069087,Wales Translation Services 2016-2017,CF14 5GH,"-3,802.80",
MHCLG,PINS,27/02/2019,Translations,Wales Director,TROSOL CYFYNGEDIG,,Small,,5106244247,Wales Translation Services 2016-2017,CF14 5GH,"3,802.80",
MHCLG,PINS,28/02/2019,Agency Staff,Performance Recovery,HAYS SPECIALIST RECRUITMENT LTD,,Large,,5106244126,HR Recruitment Resource SC,NW1 2AF,682.01,
MHCLG,PINS,28/02/2019,Agency Staff,Environment & Transport,REED SPECIALIST RECRUITMENT LTD,,Large,,5106243953,AO Specialist Case Officer HL,SW20 0BA,569.88,
MHCLG,PINS,28/02/2019,Agency Staff,Environment & Transport,REED SPECIALIST RECRUITMENT LTD,,Large,,5106244205,AO Specialist Case Officer HL,SW20 0BA,613.37,
MHCLG,PINS,28/02/2019,Agency Staff,Inspector Development & Support Team,REED SPECIALIST RECRUITMENT LTD,,Large,,5106244206,Agency EO IDST,SW20 0BA,802.86,
MHCLG,PINS,28/02/2019,Agency Staff,Planning Casework Operations,REED SPECIALIST RECRUITMENT LTD,,Large,,5106244260,AO AGENCY STAFF JJF,SW20 0BA,510.68,
MHCLG,PINS,28/02/2019,Agency Staff,Inspector Development & Support Team,REED SPECIALIST RECRUITMENT LTD,,Large,,5106244261,Temp staff for IDST-SC,SW20 0BA,587.70,
MHCLG,PINS,28/02/2019,Courier Services,Estates,ROYAL MAIL,,Large,,5106244266,Outgoing post,S49 1HQ,"4,987.05",
MHCLG,PINS,28/02/2019,Specialist Technical Support,"Finance, Commercial & Performance",ALLEN LANE LTD,,Medium,,5106244065,FPBP Resource ext,SW1Y 6RJ,"3,427.68",
MHCLG,PINS,28/02/2019,Specialist Technical Support,"Finance, Commercial & Performance",ALLEN LANE LTD,,Medium,,5106244256,FPBP Resource ext,SW1Y 6RJ,"5,484.29",
